bitfinex/quotes_BTCUSD_20230404
["timestamp","ask_amount","ask_price","bid_price","bid_amount"]
[1680569164227,0.02277001,27738.0,27733.0,0.40563256]
[1680569164228,0.33527754,27735.0,27733.0,0.40563256]
[1680569164468,0.33536754,27735.0,27734.0,0.3]
[1680569164712,0.33548754,27735.0,27734.0,0.65471056]
[1680569164930,0.33527754,27735.0,27734.0,0.65483056]
[1680569165168,0.33527754,27735.0,27734.0,0.65489056]
[1680569165415,0.00021,27736.0,27734.0,0.65489056]
[1680569165647,0.03410317,27735.0,27734.0,0.65471056]
[1680569165869,0.03410317,27735.0,27734.0,0.66571056]
[1680569166101,0.03410317,27735.0,27734.0,0.65471056]
[1680569166314,0.03410317,27735.0,27734.0,0.68271056]
[1680569166547,0.41895762,27737.0,27734.0,0.68271056]
[1680569166781,0.41895762,27737.0,27736.0,0.0017]
[1680569167229,0.32985557,27737.0,27736.0,0.0017]
[1680569167452,0.2851,27736.0,27734.0,0.011]
[1680569167696,0.097116,27735.0,27734.0,0.011]
[1680569167889,0.197116,27735.0,27734.0,0.011]
[1680569168143,0.57013098,27735.0,27730.0,0.35312551]
[1680569168377,0.22889681,27734.0,27730.0,0.70801607]
[1680569169093,0.08721,27734.0,27730.0,0.70783607]
[1680569169289,0.08721,27734.0,27730.0,0.36412551]
[1680569170407,0.08721,27734.0,27731.0,0.01803]
[1680569170629,0.3681545,27733.0,27730.0,0.011]
[1680569170848,0.3683645,27733.0,27730.0,0.011]
[1680569171550,0.3683645,27733.0,27729.0,0.35386793]
[1680569171765,0.03397029,27732.0,27730.0,0.011]
[1680569172200,0.03397029,27732.0,27731.0,0.30033647]
[1680569172415,0.03397029,27732.0,27731.0,0.30039647]
[1680569172605,0.04225829,27732.0,27731.0,0.30039647]
[1680569172890,0.04225829,27732.0,27731.0,0.30033647]
[1680569173110,0.04225829,27732.0,27731.0,0.65504703]
[1680569173111,0.03397029,27732.0,27731.0,0.65504703]
[1680569173332,0.03397029,27732.0,27731.0,0.67307703]
[1680569173559,0.03397029,27732.0,27731.0,0.65504703]
[1680569173784,0.03397029,27732.0,27731.0,0.66354703]
[1680569174231,0.03597029,27732.0,27731.0,0.66354703]
[1680569175187,0.03397029,27732.0,27731.0,0.66754703]
[1680569175669,0.40572255,27734.0,27731.0,0.66754703]
[1680569175907,0.008483,27733.0,27732.0,0.35471056]
[1680569176615,0.008483,27733.0,27732.0,0.38073056]
[1680569176851,0.02277001,27738.0,27737.0,0.00458]
[1680569177084,0.02298001,27738.0,27737.0,0.87055856]
[1680569177368,0.02277001,27738.0,27737.0,0.87073856]
[1680569177625,0.02277001,27738.0,27737.0,1.03747856]
[1680569177889,0.02277001,27738.0,27737.0,0.86553856]
[1680569178143,0.02277001,27738.0,27737.0,0.89359856]
[1680569178359,0.02277001,27738.0,27737.0,1.30956605]
[1680569178853,0.05700603,27738.0,27737.0,1.30956605]
[1680569179082,0.05700603,27738.0,27737.0,1.28156605]
[1680569179301,0.05700603,27738.0,27737.0,1.30956605]
[1680569179520,0.05700603,27738.0,27737.0,1.28156605]
[1680569179736,0.05700603,27738.0,27737.0,1.07396856]
[1680569179971,0.05700603,27738.0,27737.0,1.4086297]
[1680569180417,0.05700603,27738.0,27737.0,1.07396856]
[1680569180689,0.02277001,27738.0,27737.0,1.37396856]
[1680569181609,0.02277001,27738.0,27737.0,1.46016856]
[1680569182518,0.02277001,27738.0,27737.0,1.43216856]
[1680569182759,0.02277001,27738.0,27737.0,1.56016856]
[1680569183238,0.02277001,27738.0,27737.0,1.53216856]
[1680569183460,0.02277001,27738.0,27737.0,1.56016856]
[1680569183914,0.02277001,27738.0,27737.0,1.46016856]
[1680569185032,0.02277001,27738.0,27737.0,1.43216856]
[1680569185249,0.02277001,27738.0,27737.0,1.46016856]
[1680569185470,0.02277001,27738.0,27737.0,1.43216856]
[1680569185693,0.02277001,27738.0,27737.0,1.46016856]
[1680569186131,0.02277001,27738.0,27737.0,1.45998856]
[1680569186132,0.00777001,27738.0,27737.0,1.45998856]
[1680569187284,0.00777001,27738.0,27737.0,1.9123086]
[1680569187488,0.00777001,27738.0,27737.0,1.27973856]
[1680569188227,0.00777001,27738.0,27737.0,1.50960732]
[1680569188504,0.00777001,27738.0,27737.0,1.11318132]
[1680569188736,0.00777001,27738.0,27737.0,1.13120732]
[1680569188985,0.00777001,27738.0,27737.0,1.10320732]
[1680569189216,0.00777001,27738.0,27737.0,1.13120732]
[1680569190137,0.00777001,27738.0,27737.0,1.13798032]
[1680569192433,0.00777001,27738.0,27737.0,1.15575956]
[1680569192672,0.00777001,27738.0,27737.0,1.44265956]
[1680569193367,0.00777001,27738.0,27737.0,1.54265956]
[1680569195204,0.00777001,27738.0,27737.0,1.72240956]
[1680569195434,0.00777001,27738.0,27737.0,1.62240956]
[1680569197689,0.00777001,27738.0,27737.0,1.59441956]
[1680569197877,0.00777001,27738.0,27737.0,1.86387059]
[1680569198124,0.00777001,27738.0,27737.0,1.44233956]
[1680569198405,0.00777001,27738.0,27737.0,1.90862274]
[1680569198678,0.00777001,27738.0,27737.0,1.44215956]
[1680569199214,0.00777001,27738.0,27737.0,1.82177279]
[1680569199514,0.00777001,27738.0,27737.0,1.82195279]
[1680569200000,0.00777001,27738.0,27737.0,1.44233956]
[1680569200274,0.00777001,27738.0,27737.0,1.88232351]
[1680569200559,0.00377001,27738.0,27737.0,1.44215956]
[1680569201539,0.00377001,27738.0,27737.0,1.54215956]
[1680569201758,0.00377001,27738.0,27737.0,1.44215956]
[1680569203063,0.00377001,27738.0,27737.0,1.44227956]
[1680569203341,0.00377001,27738.0,27737.0,1.44215956]
[1680569204005,0.00377001,27738.0,27737.0,1.41415956]
[1680569205314,0.00377001,27738.0,27737.0,1.44215956]
[1680569205483,0.00377001,27738.0,27737.0,1.41415956]
[1680569205720,0.00377001,27738.0,27737.0,1.44215956]
[1680569207085,0.00377001,27738.0,27737.0,1.41415956]
[1680569207311,0.00377001,27738.0,27737.0,1.44215956]
[1680569207518,0.00377001,27738.0,27737.0,1.44227956]
[1680569207731,0.00377001,27738.0,27737.0,1.44215956]
[1680569208149,0.40956594,27744.0,27737.0,1.44215956]
[1680569208364,0.00018,27744.0,27741.0,0.43247]
[1680569208582,0.00018,27745.0,27743.0,0.018022]
[1680569208804,0.00018,27745.0,27744.0,0.37273156]
[1680569209027,0.00018,27745.0,27744.0,0.43297256]
[1680569209244,0.00018,27745.0,27744.0,0.37731156]
[1680569209479,0.00018,27745.0,27744.0,0.42799856]
[1680569209725,0.00018,27745.0,27744.0,0.45439856]
[1680569210144,0.00018,27745.0,27744.0,0.47739856]
[1680569211273,0.00018,27745.0,27744.0,0.50039856]
[1680569211501,0.00018,27745.0,27744.0,0.47739856]
[1680569211728,0.00018,27745.0,27744.0,0.74209123]
[1680569213270,0.00018,27746.0,27744.0,0.74209123]
[1680569213490,0.00018,27746.0,27745.0,0.070432]
[1680569213724,0.00018,27746.0,27745.0,0.37273156]
[1680569213962,0.4491669,27746.0,27744.0,0.00458]
[1680569214199,0.39005924,27745.0,27744.0,0.028]
[1680569214419,0.31827883,27744.0,27742.0,0.00476]
[1680569214634,0.31827883,27744.0,27742.0,0.35947056]
[1680569215521,0.31827883,27744.0,27742.0,0.38247056]
[1680569215967,0.31827883,27744.0,27742.0,0.72496423]
[1680569216866,0.31827883,27744.0,27742.0,0.38247056]
[1680569217088,0.31827883,27744.0,27743.0,0.0092]
[1680569217813,0.44728991,27745.0,27743.0,0.35429284]
[1680569218030,0.44710991,27745.0,27743.0,0.35345084]
[1680569218464,0.44710991,27745.0,27743.0,0.33645084]
[1680569218680,0.44710991,27745.0,27743.0,0.35345084]
[1680569219319,0.44710991,27745.0,27743.0,0.37147284]
[1680569219531,0.44710991,27745.0,27743.0,0.33645084]
[1680569219958,0.44710991,27745.0,27743.0,0.35345084]
[1680569220697,0.086,27745.0,27743.0,0.7261834]
[1680569220922,0.086,27745.0,27744.0,0.30295182]
[1680569222015,0.086,27745.0,27744.0,0.66616238]
[1680569222236,0.086,27745.0,27744.0,0.66756238]
[1680569222471,0.086,27745.0,27744.0,0.67756238]
[1680569222691,0.086,27745.0,27744.0,0.66756238]
[1680569222904,0.086,27745.0,27744.0,0.68456238]
[1680569223559,0.02295001,27747.0,27745.0,0.00458]
[1680569223772,0.02295001,27747.0,27745.0,0.37731156]
[1680569223997,0.02277001,27747.0,27745.0,0.37731156]
[1680569224429,0.02295001,27747.0,27745.0,0.37731156]
[1680569224645,0.02277001,27747.0,27745.0,0.37731156]
[1680569224865,0.02277001,27747.0,27746.0,0.0099]
[1680569225123,0.439191,27750.0,27746.0,0.78705056]
[1680569225549,0.439191,27750.0,27749.0,1.28855956]
[1680569225550,0.29236541,27750.0,27749.0,1.28855956]
[1680569225554,0.08606666,27759.0,27750.0,0.4]
[1680569225777,0.23660913,27762.0,27750.0,0.4]
[1680569225778,0.02277001,27762.0,27754.0,0.91782056]
[1680569226027,0.30800702,27762.0,27754.0,1.44531515]
[1680569226269,0.02277001,27762.0,27759.0,0.00458]
[1680569226502,0.32870708,27761.0,27760.0,0.43813756]
[1680569226749,0.32882708,27761.0,27760.0,0.58956856]
[1680569226975,0.32888708,27761.0,27760.0,0.56300856]
[1680569227195,0.32888708,27761.0,27760.0,0.59909156]
[1680569227431,6e-05,27761.0,27760.0,1.15323156]
[1680569227674,0.02289001,27762.0,27760.0,1.15323156]
[1680569227675,0.02277001,27762.0,27760.0,1.27383156]
[1680569227918,0.02277001,27762.0,27761.0,0.843467]
[1680569228154,0.02277001,27762.0,27761.0,1.23654756]
[1680569228846,0.02277001,27762.0,27761.0,1.23642756]
[1680569229074,0.02277001,27762.0,27761.0,1.26430756]
[1680569229328,0.02277001,27762.0,27761.0,1.23612756]
[1680569229559,0.02277001,27762.0,27761.0,1.44393556]
[1680569229809,0.02277001,27762.0,27761.0,1.84495117]
[1680569230039,0.02277001,27762.0,27761.0,1.93041117]
[1680569230278,0.02277001,27762.0,27761.0,2.50261129]
[1680569230529,0.02277001,27762.0,27761.0,2.85291564]
[1680569230757,0.02277001,27762.0,27761.0,3.14046844]
[1680569230981,0.02277001,27762.0,27761.0,3.17164844]
[1680569231202,0.02277001,27762.0,27761.0,3.17134844]
[1680569231428,0.02277001,27762.0,27761.0,3.11558844]
[1680569231657,0.02277001,27762.0,27761.0,3.14328844]
[1680569231886,0.02277001,27762.0,27761.0,2.85495564]
[1680569232115,0.02277001,27762.0,27761.0,2.88181564]
[1680569232349,0.01496788,27762.0,27761.0,2.85447564]
[1680569232574,0.01496788,27762.0,27761.0,2.88271564]
[1680569232831,0.01496788,27762.0,27761.0,2.88289564]
[1680569233167,0.01496788,27762.0,27761.0,2.88283564]
[1680569233260,0.01496788,27762.0,27761.0,2.88265564]
[1680569233480,0.01496788,27762.0,27761.0,2.32546003]
[1680569233712,0.01496788,27762.0,27761.0,2.07186185]
[1680569233942,0.01496788,27762.0,27761.0,1.5152047]
[1680569234160,0.01496788,27762.0,27761.0,1.5429647]
[1680569234379,0.01496788,27762.0,27761.0,1.5149647]
[1680569234608,0.01496788,27762.0,27761.0,1.5429647]
[1680569234849,0.01496788,27762.0,27761.0,1.10768756]
[1680569235080,0.01496788,27762.0,27761.0,0.83676756]
[1680569235323,0.01496788,27762.0,27761.0,0.83700756]
[1680569235547,0.01496788,27762.0,27761.0,1.2578993]
[1680569235783,0.01496788,27762.0,27761.0,1.2572993]
[1680569236018,0.01496788,27762.0,27761.0,0.00138]
[1680569236019,0.44440704,27762.0,27761.0,0.00138]
[1680569236250,0.44458704,27762.0,27761.0,0.02926]
[1680569236486,0.44458704,27762.0,27761.0,0.03022]
[1680569236730,0.44458704,27762.0,27761.0,0.031]
[1680569236989,0.44458704,27762.0,27759.0,0.22738511]
[1680569237230,0.1857,27761.0,27756.0,0.0047]
[1680569237473,0.28122,27757.0,27755.0,0.4180594]
[1680569237712,0.0865,27756.0,27755.0,0.4216594]
[1680569237944,0.0865,27756.0,27755.0,0.4180594]
[1680569237945,0.08668,27756.0,27755.0,0.4180594]
[1680569238181,0.00018,27756.0,27755.0,0.43836282]
[1680569238417,0.00018,27756.0,27755.0,0.37272456]
[1680569238652,0.00018,27756.0,27755.0,0.78851001]
[1680569239112,0.00018,27756.0,27755.0,0.79707001]
[1680569239351,0.48787049,27760.0,27755.0,0.82501001]
[1680569239352,0.00018,27757.0,27755.0,0.82501001]
[1680569239643,0.00018,27757.0,27756.0,0.40964656]
[1680569239869,0.00018,27757.0,27756.0,0.37272456]
[1680569240105,0.28486537,27757.0,27756.0,0.35471056]
[1680569240605,0.28486537,27757.0,27754.0,0.00458]
[1680569240606,0.37646025,27756.0,27754.0,0.00458]
[1680569240835,0.37664025,27756.0,27754.0,0.58013737]
[1680569241053,0.37664025,27756.0,27755.0,0.054926]
[1680569241272,0.37664025,27756.0,27755.0,0.018014]
[1680569241495,0.00018,27756.0,27755.0,0.069766]
[1680569241729,0.3227203,27758.0,27755.0,0.43297656]
[1680569241939,0.3227203,27758.0,27756.0,0.36321056]
[1680569242169,0.00018,27758.0,27757.0,0.018013]
[1680569242394,0.00018,27758.0,27757.0,0.37272356]
[1680569243086,0.00018,27758.0,27757.0,0.43193156]
[1680569243310,0.00018,27758.0,27757.0,0.83583156]
[1680569243540,0.00018,27760.0,27757.0,0.83583156]
[1680569243764,0.00018,27761.0,27758.0,0.79843356]
[1680569243996,0.00018,27761.0,27759.0,0.106707]
[1680569244225,0.00018,27761.0,27760.0,0.41539456]
[1680569244444,0.00018,27761.0,27760.0,0.43340556]
[1680569245120,0.00018,27761.0,27760.0,0.40689456]
[1680569245371,0.39135291,27761.0,27760.0,0.40689456]
[1680569245582,0.39135291,27761.0,27760.0,0.35489056]
[1680569245838,0.39335291,27761.0,27760.0,0.35471056]
[1680569246543,0.39135291,27761.0,27757.0,0.022593]
[1680569246765,0.39135291,27761.0,27758.0,0.35471056]
[1680569247000,0.14189681,27760.0,27755.0,0.00018]
[1680569247239,0.22839681,27759.0,27755.0,0.35471056]
[1680569247450,0.22857681,27759.0,27755.0,0.63046246]
[1680569247899,0.08668,27759.0,27755.0,0.65846246]
[1680569248127,0.08668,27759.0,27755.0,0.63046246]
[1680569248365,0.08668,27759.0,27755.0,0.65846246]
[1680569248603,0.08668,27759.0,27755.0,0.38271056]
[1680569249042,0.4738725,27759.0,27756.0,0.40708181]
[1680569249271,0.34481055,27758.0,27756.0,0.40708181]
[1680569249481,0.34499055,27758.0,27755.0,0.38271056]
[1680569249694,0.34499055,27758.0,27756.0,0.056424]
[1680569249926,0.00018,27758.0,27756.0,0.2549243]
[1680569250153,0.08668,27759.0,27757.0,0.054339]
[1680569250374,0.08668,27759.0,27756.0,0.2549243]
[1680569250605,0.00018,27759.0,27757.0,0.35471056]
[1680569250834,0.00018,27759.0,27756.0,0.2549243]
[1680569251068,0.29212863,27759.0,27756.0,0.63363486]
[1680569251334,0.29212863,27759.0,27757.0,0.052165]
[1680569251566,0.29212863,27759.0,27757.0,0.069165]
[1680569251799,0.29212863,27759.0,27756.0,0.60963486]
[1680569252015,0.29212863,27759.0,27756.0,0.63363486]
[1680569252262,0.29212863,27759.0,27757.0,0.054123]
[1680569252481,0.29212863,27759.0,27757.0,0.43901399]
[1680569252708,0.29212863,27759.0,27758.0,0.054495]
[1680569252934,0.00018,27759.0,27758.0,0.35471056]
[1680569253174,0.00018,27759.0,27758.0,0.40869256]
[1680569253424,0.00018,27759.0,27758.0,0.40763756]
[1680569253641,0.00018,27759.0,27758.0,0.35471056]
[1680569254109,0.00018,27759.0,27758.0,0.36571056]
[1680569254757,0.33266575,27761.0,27758.0,0.61794377]
[1680569255888,0.33266575,27761.0,27758.0,0.60694377]
[1680569256127,0.33266575,27761.0,27758.0,0.61794377]
[1680569256814,0.33266575,27761.0,27758.0,0.61776377]
[1680569259326,0.39448481,27760.0,27758.0,0.61776377]
[1680569259556,0.39466481,27760.0,27758.0,0.26305321]
[1680569259771,0.39466481,27760.0,27758.0,0.011]
[1680569260237,0.39466481,27760.0,27757.0,0.27985193]
[1680569260451,0.39466481,27760.0,27758.0,0.011]
[1680569260893,0.38948481,27760.0,27758.0,0.011]
[1680569262239,0.010807,27760.0,27758.0,0.011]
[1680569262451,0.39206518,27760.0,27758.0,0.011]
[1680569262895,0.010807,27760.0,27758.0,0.011]
[1680569263092,0.29221336,27760.0,27759.0,0.00036]
[1680569263327,0.37871336,27760.0,27758.0,0.011]
[1680569263550,0.0864,27759.0,27758.0,0.011]
[1680569263771,0.0864,27759.0,27755.0,0.24958218]
[1680569264009,0.0865,27758.0,27755.0,0.24958218]
[1680569265613,0.0865,27758.0,27755.0,0.26658218]
[1680569265847,0.0865,27758.0,27756.0,0.45020887]
[1680569266081,0.00018,27760.0,27756.0,0.82311243]
[1680569266326,0.28253817,27761.0,27757.0,0.054225]
[1680569266569,0.28253817,27761.0,27757.0,0.02602]
[1680569267068,0.28253817,27761.0,27758.0,0.23722043]
[1680569268135,0.29696788,27762.0,27759.0,0.35471056]
[1680569268136,0.01514788,27762.0,27759.0,0.35471056]
[1680569268344,0.0015662,27761.0,27760.0,0.018011]
[1680569268560,0.0015662,27761.0,27760.0,0.070609]
[1680569269023,0.01496788,27762.0,27760.0,0.070609]
[1680569269243,0.01496788,27762.0,27760.0,0.37290156]
[1680569269466,0.01496788,27762.0,27761.0,0.052051]
[1680569269687,0.01496788,27762.0,27761.0,0.01801]
[1680569270352,0.01496788,27762.0,27761.0,0.75612291]
[1680569270595,0.01496788,27762.0,27761.0,0.43753256]
[1680569270814,0.01496788,27762.0,27761.0,0.81593256]
[1680569271499,0.01496788,27762.0,27761.0,0.84393256]
[1680569271748,0.01496788,27762.0,27761.0,0.81593256]
[1680569272022,0.01496788,27762.0,27761.0,0.87995356]
[1680569273175,0.01496788,27762.0,27761.0,1.28093911]
[1680569273392,0.01496788,27762.0,27761.0,0.87995356]
[1680569276790,0.01496788,27762.0,27761.0,1.25585474]
[1680569277030,0.01496788,27762.0,27761.0,1.27386474]
[1680569277469,0.01496788,27762.0,27761.0,0.89546474]
[1680569278449,0.01496788,27762.0,27761.0,1.27386474]
[1680569279096,0.01496788,27762.0,27761.0,1.30988574]
[1680569279326,0.01496788,27762.0,27761.0,0.93148574]
[1680569279507,0.01496788,27762.0,27761.0,0.89546474]
[1680569279703,0.01496788,27762.0,27761.0,1.27386474]
[1680569279905,0.01496788,27762.0,27761.0,0.93003256]
[1680569280278,0.01496788,27762.0,27761.0,1.23003256]
[1680569280489,0.01486653,27762.0,27761.0,1.23003256]
[1680569280708,0.01486653,27762.0,27761.0,1.22985256]
[1680569281339,0.01486653,27762.0,27761.0,1.31605615]
[1680569281986,0.01486653,27762.0,27761.0,1.54536154]
[1680569282210,0.01486653,27762.0,27761.0,1.44536154]
[1680569282424,0.01486653,27762.0,27761.0,1.54536154]
[1680569282647,0.01486653,27762.0,27761.0,1.44536154]
[1680569282852,0.01486653,27762.0,27761.0,1.35927795]
[1680569283073,0.01486653,27762.0,27761.0,1.45933795]
[1680569283496,0.01486653,27762.0,27761.0,1.41308925]
[1680569284567,0.01486653,27762.0,27761.0,1.51724151]
[1680569284766,0.01486653,27762.0,27761.0,1.49924975]
[1680569284988,0.01486653,27762.0,27761.0,1.36994436]
[1680569285188,0.01486653,27762.0,27761.0,1.49924975]
[1680569285401,0.01486653,27762.0,27761.0,1.36994436]
[1680569285610,0.01486653,27762.0,27761.0,1.49924975]
[1680569286478,0.01486653,27762.0,27761.0,1.87093141]
[1680569286686,0.01486653,27762.0,27761.0,0.74360256]
[1680569286912,0.01486653,27762.0,27761.0,0.45933556]
[1680569287157,0.01486653,27762.0,27761.0,0.44132556]
[1680569287392,0.01486653,27762.0,27761.0,0.45933556]
[1680569287841,0.01486653,27762.0,27761.0,0.40530056]
[1680569288079,0.01486653,27762.0,27761.0,0.45923156]
[1680569288850,0.01486653,27762.0,27761.0,0.38729056]
[1680569289359,0.01486653,27762.0,27761.0,0.40530056]
[1680569290667,0.01486653,27762.0,27761.0,0.45819356]
[1680569290948,0.01486653,27762.0,27761.0,0.74327365]
[1680569291095,0.01486653,27762.0,27761.0,0.74345365]
[1680569291309,0.01486653,27762.0,27761.0,0.74327365]
[1680569294768,0.01486653,27762.0,27761.0,0.38729056]
[1680569295003,0.34660483,27762.0,27761.0,0.03258]
[1680569295666,0.34660483,27762.0,27761.0,0.00458]
[1680569296505,0.34678483,27762.0,27761.0,0.00458]
[1680569296706,0.34678483,27762.0,27761.0,0.03258]
[1680569297394,0.24824201,27762.0,27761.0,0.045]
[1680569297623,0.48734482,27762.0,27761.0,0.045]
[1680569297837,1.64206734,27762.0,27761.0,0.045]
[1680569298055,0.34562801,27762.0,27761.0,0.045]
[1680569298764,0.1,27761.0,27756.0,0.00066]
[1680569298980,0.0857,27757.0,27756.0,0.00054]
[1680569299194,0.0857,27757.0,27756.0,0.06568]
[1680569299405,0.0857,27757.0,27756.0,0.06556]
[1680569299620,0.0857,27757.0,27756.0,0.06544]
[1680569299839,0.0857,27757.0,27756.0,0.06538]
[1680569300045,0.0857,27757.0,27756.0,0.06532]
[1680569300476,0.0857,27757.0,27756.0,0.06932]
[1680569301200,0.08668,27760.0,27756.0,0.42403056]
[1680569301426,0.00018,27760.0,27757.0,0.38073056]
[1680569301639,0.89526349,27762.0,27757.0,0.39874356]
[1680569301640,0.00018,27761.0,27757.0,0.39874356]
[1680569301865,0.00018,27761.0,27757.0,0.38073056]
[1680569302081,0.3321521,27761.0,27757.0,0.35471056]
[1680569302497,0.3321521,27761.0,27757.0,0.35929056]
[1680569303642,0.3341521,27761.0,27757.0,0.35929056]
[1680569303816,0.3321521,27761.0,27758.0,0.29075054]
[1680569305354,0.32968302,27760.0,27758.0,0.29075054]
[1680569305566,0.32986302,27760.0,27758.0,0.29075054]
[1680569305787,0.32986302,27760.0,27758.0,0.31875054]
[1680569306015,0.32986302,27760.0,27758.0,0.31893054]
[1680569306485,0.32986302,27760.0,27758.0,0.29075054]
[1680569306699,0.32986302,27760.0,27758.0,0.31875054]
[1680569307141,0.00018,27760.0,27758.0,0.6734611]
[1680569307355,0.00018,27761.0,27758.0,0.6734611]
[1680569307821,0.27872883,27761.0,27758.0,0.6734611]
[1680569308257,0.27872883,27761.0,27759.0,0.40610042]
[1680569308733,0.00018,27761.0,27759.0,0.76081098]
[1680569308992,0.00011932,27761.0,27760.0,0.41072256]
[1680569309212,0.01486653,27762.0,27760.0,0.76198968]
[1680569309447,0.01486653,27762.0,27761.0,0.054658]
[1680569309672,0.01486653,27762.0,27761.0,0.42737856]
[1680569309893,0.01486653,27762.0,27761.0,0.42755856]
[1680569311419,0.01486653,27762.0,27761.0,0.43855856]
[1680569311636,0.01486653,27762.0,27761.0,0.42755856]
[1680569311853,0.01486653,27762.0,27761.0,0.45555856]
[1680569312068,0.01486653,27762.0,27761.0,0.42755856]
[1680569312281,0.01486653,27762.0,27761.0,0.45555856]
[1680569312510,0.01486653,27762.0,27761.0,0.74789704]
[1680569312726,0.01486653,27762.0,27761.0,0.77589704]
[1680569313148,0.01486653,27762.0,27761.0,0.74789704]
[1680569314018,0.01486653,27762.0,27761.0,0.81445856]
[1680569314234,0.01486653,27762.0,27761.0,1.17551657]
[1680569314679,0.01486653,27762.0,27761.0,0.87045856]
[1680569314901,0.01486653,27762.0,27761.0,1.28653459]
[1680569315128,0.01486653,27762.0,27761.0,1.50078574]
[1680569315348,0.01486653,27762.0,27761.0,1.83238574]
[1680569315571,0.01443298,27762.0,27761.0,1.86044574]
[1680569315806,0.01443298,27762.0,27761.0,1.83238574]
[1680569316024,0.02277001,27763.0,27762.0,0.4784]
[1680569316254,0.02277001,27763.0,27762.0,1.70665488]
[1680569316483,0.02277001,27763.0,27762.0,1.89385184]
[1680569316969,0.02277001,27763.0,27762.0,2.18957564]
[1680569317408,0.02277001,27763.0,27762.0,1.82997564]
[1680569317642,0.02277001,27763.0,27762.0,1.85797564]
[1680569318291,0.02277001,27763.0,27762.0,1.82997564]
[1680569318505,0.02277001,27763.0,27762.0,1.85797564]
[1680569318766,0.02277001,27763.0,27762.0,1.41912154]
[1680569318979,0.02277001,27763.0,27762.0,1.59921154]
[1680569319413,0.02277001,27763.0,27762.0,1.69921154]
[1680569319626,0.02277001,27763.0,27762.0,1.59921154]
[1680569319868,0.02277001,27763.0,27762.0,1.8332254]
[1680569320061,0.02277001,27763.0,27762.0,1.41912154]
[1680569320233,0.02277001,27763.0,27762.0,1.51912154]
[1680569320494,0.02277001,27763.0,27762.0,1.41912154]
[1680569320689,0.02277001,27763.0,27762.0,1.51912154]
[1680569321451,0.02277001,27763.0,27762.0,1.41912154]
[1680569321668,0.02277001,27763.0,27762.0,1.78413908]
[1680569322303,0.02277001,27763.0,27762.0,1.43294956]
[1680569322580,0.02277001,27763.0,27762.0,1.88668165]
[1680569322787,0.02277001,27763.0,27762.0,1.78668165]
[1680569324143,0.02277001,27763.0,27762.0,0.328]
[1680569324395,0.63857538,27763.0,27760.0,6e-05]
[1680569324624,0.63857538,27763.0,27758.0,6e-05]
[1680569324625,0.28192,27761.0,27758.0,6e-05]
[1680569324859,0.19542,27758.0,27756.0,0.00324]
[1680569325084,0.053019,27757.0,27754.0,6e-05]
[1680569325335,0.053019,27757.0,27752.0,0.00666]
[1680569325336,0.28122,27755.0,27752.0,0.00552]
[1680569325605,0.19542,27751.0,27750.0,0.0081]
[1680569325823,0.19542,27751.0,27750.0,0.00864]
[1680569325824,0.31362,27751.0,27750.0,0.00864]
[1680569326037,0.1,27750.0,27749.0,0.00864]
[1680569326256,0.133023,27750.0,27749.0,0.00936]
[1680569326472,0.27491981,27750.0,27747.0,0.47925829]
[1680569326696,0.0865,27748.0,27747.0,0.01062]
[1680569326913,0.02162,27748.0,27747.0,0.28857778]
[1680569327337,0.02162,27748.0,27747.0,0.29847778]
[1680569327545,0.02162,27748.0,27747.0,0.01184]
[1680569328298,0.02162,27748.0,27747.0,0.00524]
[1680569328398,0.34048947,27748.0,27747.0,0.00324]
[1680569328627,0.34048947,27748.0,27747.0,0.00518]
[1680569328864,0.34048947,27748.0,27747.0,0.00288]
[1680569329843,0.36330047,27748.0,27747.0,0.00246]
[1680569330099,0.44980047,27748.0,27747.0,0.00288]
[1680569330329,0.44980047,27748.0,27747.0,0.00294]
[1680569330556,0.50479845,27748.0,27747.0,0.00288]
[1680569330781,0.12012,27748.0,27747.0,0.0024]
[1680569331004,0.012,27748.0,27747.0,0.28588731]
[1680569331230,0.012,27748.0,27747.0,0.28474731]
[1680569331453,0.62424147,27751.0,27747.0,0.28480731]
[1680569331674,0.025,27748.0,27747.0,0.28480731]
[1680569331922,0.025,27748.0,27747.0,0.28438731]
[1680569332160,0.037,27748.0,27747.0,0.28492731]
[1680569332384,0.020858,27748.0,27747.0,0.28498731]
[1680569332604,0.33777012,27750.0,27747.0,0.28528731]
[1680569332829,0.021915,27749.0,27747.0,0.28528731]
[1680569333045,0.021915,27749.0,27748.0,0.0009]
[1680569333784,0.021915,27749.0,27748.0,0.00108]
[1680569334488,0.021915,27749.0,27748.0,0.00102]
[1680569334702,0.033915,27749.0,27748.0,0.00084]
[1680569334922,0.033915,27749.0,27748.0,0.0006]
[1680569334923,0.012,27749.0,27748.0,0.0006]
[1680569335163,0.012,27749.0,27748.0,0.00054]
[1680569335374,0.033299,27749.0,27748.0,0.00072]
[1680569335838,0.033299,27749.0,27748.0,0.00066]
[1680569336103,0.033299,27749.0,27748.0,0.00078]
[1680569336334,0.033299,27749.0,27748.0,0.0006]
[1680569336559,0.033299,27749.0,27748.0,0.00084]
[1680569336778,0.0559973,27749.0,27748.0,0.00084]
[1680569336991,0.0346983,27749.0,27748.0,0.00078]
[1680569337201,0.0346983,27749.0,27748.0,0.00084]
[1680569337432,0.0346983,27749.0,27748.0,0.38604425]
[1680569337654,0.0346983,27749.0,27748.0,0.00048]
[1680569337881,0.0346983,27749.0,27748.0,0.36321056]
[1680569338103,0.0346983,27749.0,27748.0,0.79808356]
[1680569338326,0.0226983,27749.0,27748.0,0.79808356]
[1680569338779,0.001,27749.0,27748.0,0.80308356]
[1680569339232,0.32476381,27754.0,27748.0,0.79814356]
[1680569339453,0.32476381,27754.0,27752.0,0.00458]
[1680569340154,0.001,27754.0,27753.0,0.36321056]
[1680569340375,0.001,27754.0,27753.0,1.06412519]
[1680569340600,0.00017932,27758.0,27753.0,0.59873956]
[1680569340820,0.005,27754.0,27753.0,0.56137556]
[1680569341056,0.005,27754.0,27753.0,0.59947256]
[1680569341317,0.00017932,27759.0,27757.0,0.00458]
[1680569341549,0.019003,27759.0,27757.0,0.00458]
[1680569341772,0.32091797,27759.0,27757.0,0.00458]
[1680569341997,0.021093,27758.0,27757.0,0.00458]
[1680569342703,0.021093,27758.0,27757.0,0.00558]
[1680569342940,0.021093,27758.0,27757.0,0.00458]
[1680569343171,0.03927232,27758.0,27757.0,0.00558]
[1680569343894,0.01817932,27758.0,27757.0,0.44700959]
[1680569344353,0.018,27758.0,27757.0,0.44700959]
[1680569345470,0.01817932,27758.0,27757.0,0.44700959]
[1680569345911,0.01817932,27758.0,27757.0,0.44692346]
[1680569346134,0.018,27758.0,27757.0,0.44692346]